[Event "Late-Titled-Tuesday-Blitz-March-26-2024"]
[Site "Chess.com"]
[Date "2024.03.26"]
[Round "8"]
[White "CFalcons8"]
[Black "ATM622"]
[Result "1-0"]
[WhiteElo "2416"]
[BlackElo "2509"]
[TimeControl "180+1"]
[EndTime "15:28:26 PDT"]
[Termination "CFalcons8 won by resignation"]

1. e4 {[%clk 0:03:00.3]} 1... c6 {[%clk 0:02:58.8]} 2. d4 {[%clk 0:02:54]} 2...
d5 {[%clk 0:02:59.7]} 3. exd5 {[%clk 0:02:52.3]} 3... cxd5 {[%clk 0:02:59.8]} 4.
c4 {[%clk 0:02:53]} 4... e6 {[%clk 0:02:59.2]} 5. Nf3 {[%clk 0:02:49.5]} 5...
Nf6 {[%clk 0:02:58.9]} 6. Nc3 {[%clk 0:02:49.6]} 6... Bb4 {[%clk 0:02:56.4]} 7.
Bd3 {[%clk 0:02:48.9]} 7... dxc4 {[%clk 0:02:56]} 8. Bxc4 {[%clk 0:02:48.8]}
8... O-O {[%clk 0:02:56]} 9. O-O {[%clk 0:02:49.5]} 9... a6 {[%clk 0:02:55.8]}
10. a3 {[%clk 0:02:46.6]} 10... Be7 {[%clk 0:02:53.4]} 11. Be3 {[%clk
0:02:44.8]} 11... b5 {[%clk 0:02:53]} 12. Ba2 {[%clk 0:02:43.4]} 12... Bb7
{[%clk 0:02:52.9]} 13. Qe2 {[%clk 0:02:42.1]} 13... Qc7 {[%clk 0:02:37.2]} 14.
Ne5 {[%clk 0:02:41.6]} 14... Nc6 {[%clk 0:02:31]} 15. Nxc6 {[%clk 0:02:32.7]}
15... Qxc6 {[%clk 0:02:30.3]} 16. f3 {[%clk 0:02:32.3]} 16... b4 {[%clk
0:02:24]} 17. axb4 {[%clk 0:02:30.8]} 17... Bxb4 {[%clk 0:02:24.9]} 18. Rac1
{[%clk 0:02:29.1]} 18... Qd7 {[%clk 0:02:14.5]} 19. Rfd1 {[%clk 0:02:24]} 19...
Rac8 {[%clk 0:02:12.3]} 20. Bg5 {[%clk 0:02:17.8]} 20... Be7 {[%clk 0:02:06.3]}
21. Be3 {[%clk 0:02:10.4]} 21... Rc7 {[%clk 0:01:56.5]} 22. Bf4 {[%clk
0:02:07.8]} 22... Bd6 {[%clk 0:01:51.2]} 23. Bxd6 {[%clk 0:02:07.6]} 23... Qxd6
{[%clk 0:01:52.1]} 24. Ne4 {[%clk 0:02:08.4]} 24... Nxe4 {[%clk 0:01:47.9]} 25.
Rxc7 {[%clk 0:02:08.2]} 25... Qxc7 {[%clk 0:01:42.5]} 26. fxe4 {[%clk
0:02:09.1]} 26... Rd8 {[%clk 0:01:32.5]} 27. d5 {[%clk 0:02:09.1]} 27... exd5
{[%clk 0:01:20.2]} 28. exd5 {[%clk 0:02:10]} 28... h6 {[%clk 0:01:18.7]} 29. Rf1
{[%clk 0:02:01.4]} 29... Qb6+ {[%clk 0:01:12.6]} 30. Kh1 {[%clk 0:02:01.6]}
30... Qd6 {[%clk 0:00:59.4]} 31. Rd1 {[%clk 0:01:55.7]} 31... Qc5 {[%clk
0:00:48.2]} 32. Qf3 {[%clk 0:01:49.9]} 32... Rd6 {[%clk 0:00:34.7]} 33. Qe4
{[%clk 0:01:46.3]} 33... Qc7 {[%clk 0:00:22.7]} 34. Bb1 {[%clk 0:01:35.4]} 34...
g6 {[%clk 0:00:22.1]} 35. Ba2 {[%clk 0:01:29.9]} 35... Qd8 {[%clk 0:00:19.7]}
36. Qe5 {[%clk 0:01:23.9]} 36... f6 {[%clk 0:00:10.9]} 37. Qg3 {[%clk
0:01:21.5]} 37... Kf7 {[%clk 0:00:08.3]} 38. Qh3 {[%clk 0:01:12.9]} 38... h5
{[%clk 0:00:07.5]} 39. Qb3 {[%clk 0:01:11.7]} 39... Ba8 {[%clk 0:00:06.6]} 40.
Qa3 {[%clk 0:01:04.8]} 40... Bxd5 {[%clk 0:00:05.5]} 41. Rxd5 {[%clk 0:01:04.5]}
41... Rxd5 {[%clk 0:00:05.3]} 42. Qxa6 {[%clk 0:01:04.4]} 42... Kg7 {[%clk
0:00:05.3]} 43. Bxd5 {[%clk 0:01:01.3]} 43... Qxd5 {[%clk 0:00:05.5]} 44. Qa7+
{[%clk 0:01:01.6]} 44... Kh6 {[%clk 0:00:05.5]} 45. Qe3+ {[%clk 0:01:01.8]}
45... g5 {[%clk 0:00:05.9]} 46. h4 {[%clk 0:00:55.1]} 46... Kg6 {[%clk
0:00:05.5]} 47. hxg5 {[%clk 0:00:55.2]} 47... fxg5 {[%clk 0:00:06.3]} 48. Qb6+
{[%clk 0:00:52.4]} 48... Kf5 {[%clk 0:00:06.2]} 49. b4 {[%clk 0:00:51.9]} 49...
h4 {[%clk 0:00:05.6]} 50. b5 {[%clk 0:00:49.9]} 50... h3 {[%clk 0:00:05.7]} 51.
Qf2+ {[%clk 0:00:47.6]} 51... Kg6 {[%clk 0:00:05.8]} 52. Qc2+ {[%clk 0:00:47]}
52... Kh5 {[%clk 0:00:04.1]} 53. Qh7+ {[%clk 0:00:47]} 53... Kg4 {[%clk
0:00:02.9]} 54. Qxh3+ {[%clk 0:00:47.9]} 54... Kf4 {[%clk 0:00:03.3]} 55. Qf3+
{[%clk 0:00:48]} 55... Qxf3 {[%clk 0:00:03]} 56. gxf3 {[%clk 0:00:48.9]} 56...
Ke5 {[%clk 0:00:02.7]} 57. Kg2 {[%clk 0:00:49.3]} 57... Kd5 {[%clk 0:00:02.5]}
58. Kg3 {[%clk 0:00:49.8]} 58... g4 {[%clk 0:00:03.2]} 59. Kxg4 {[%clk
0:00:50.7]} 59... Kc5 {[%clk 0:00:03.2]} 60. Kg5 {[%clk 0:00:51.4]} 60... Kxb5
{[%clk 0:00:03.6]} 61. Kg6 {[%clk 0:00:52.1]} 61... Kc6 {[%clk 0:00:04.5]} 62.
f4 {[%clk 0:00:53]} 62... Kd7 {[%clk 0:00:05.1]} 63. f5 {[%clk 0:00:53.3]} 63...
Ke8 {[%clk 0:00:05.6]} 64. Kg7 {[%clk 0:00:54.2]} 1-0

[Event "Late-Titled-Tuesday-Blitz-March-26-2024"]
[Site "Chess.com"]
[Date "2024.03.26"]
[Round "8"]
[White "Chempiblinka"]
[Black "ValeriyGrinev"]
[Result "0-1"]
[WhiteElo "2380"]
[BlackElo "2596"]
[TimeControl "180+1"]
[EndTime "15:28:26 PDT"]
[Termination "ValeriyGrinev won on time"]

1. Nf3 {[%clk 0:02:59.9]} 1... c5 {[%clk 0:02:58.6]} 2. g3 {[%clk 0:03:00.3]}
2... Nc6 {[%clk 0:02:58.5]} 3. Bg2 {[%clk 0:03:01]} 3... g6 {[%clk 0:02:59.2]}
4. O-O {[%clk 0:03:01.4]} 4... Bg7 {[%clk 0:02:59.9]} 5. c4 {[%clk 0:03:00.7]}
5... Nf6 {[%clk 0:03:00.4]} 6. Nc3 {[%clk 0:03:01]} 6... O-O {[%clk 0:03:00.9]}
7. d3 {[%clk 0:03:01.3]} 7... d5 {[%clk 0:02:59.3]} 8. cxd5 {[%clk 0:02:59.5]}
8... Nxd5 {[%clk 0:03:00.2]} 9. Bd2 {[%clk 0:02:55.3]} 9... Nc7 {[%clk
0:02:57.2]} 10. Rc1 {[%clk 0:02:53.8]} 10... b6 {[%clk 0:02:55.2]} 11. a3 {[%clk
0:02:44.7]} 11... Bb7 {[%clk 0:02:53.9]} 12. Ne1 {[%clk 0:02:22.4]} 12... Ne6
{[%clk 0:02:49.3]} 13. Nc2 {[%clk 0:02:21.7]} 13... Rc8 {[%clk 0:02:48.1]} 14.
b4 {[%clk 0:02:10.9]} 14... cxb4 {[%clk 0:02:44.2]} 15. axb4 {[%clk 0:02:07.4]}
15... a5 {[%clk 0:02:41.8]} 16. bxa5 {[%clk 0:02:03.4]} 16... Nxa5 {[%clk
0:02:40.9]} 17. Bxb7 {[%clk 0:01:51.9]} 17... Nxb7 {[%clk 0:02:41.3]} 18. Nb4
{[%clk 0:01:43.6]} 18... Nd6 {[%clk 0:02:37.4]} 19. Ncd5 {[%clk 0:01:40.9]}
19... Qd7 {[%clk 0:02:34.5]} 20. Nxb6 {[%clk 0:01:39.1]} 20... Rxc1 {[%clk
0:02:28.6]} 21. Nxd7 {[%clk 0:01:22.1]} 21... Rxd1 {[%clk 0:02:27.7]} 22. Rxd1
{[%clk 0:01:22.7]} 22... Rd8 {[%clk 0:02:23]} 23. Nb6 {[%clk 0:01:22.1]} 23...
Bd4 {[%clk 0:02:16.2]} 24. N4d5 {[%clk 0:01:16.7]} 24... Kf8 {[%clk 0:01:52.3]}
25. Be3 {[%clk 0:01:01.1]} 25... Nf5 {[%clk 0:01:47.9]} 26. Bxd4 {[%clk
0:00:57]} 26... Nexd4 {[%clk 0:01:45.5]} 27. e3 {[%clk 0:00:52.9]} 27... Nf3+
{[%clk 0:01:42.8]} 28. Kg2 {[%clk 0:00:50.9]} 28... Ne5 {[%clk 0:01:43.4]} 29.
d4 {[%clk 0:00:47.1]} 29... Nc6 {[%clk 0:01:34.7]} 30. Rc1 {[%clk 0:00:37.7]}
30... Na5 {[%clk 0:01:29.5]} 31. Rb1 {[%clk 0:00:23.2]} 31... h5 {[%clk
0:01:27.8]} 32. Rb5 {[%clk 0:00:20.9]} 32... Nb7 {[%clk 0:01:24.1]} 33. Nf4
{[%clk 0:00:15.2]} 33... Nbd6 {[%clk 0:01:23.8]} 34. Rc5 {[%clk 0:00:12.9]}
34... e6 {[%clk 0:01:23.7]} 35. Rc7 {[%clk 0:00:11.9]} 35... Ne4 {[%clk
0:01:18]} 36. Nd3 {[%clk 0:00:11]} 36... Kg8 {[%clk 0:01:13.9]} 37. Ne5 {[%clk
0:00:10.1]} 37... Rf8 {[%clk 0:01:14.5]} 38. Nbd7 {[%clk 0:00:07.8]} 38... Ra8
{[%clk 0:01:15.1]} 39. Nb6 {[%clk 0:00:05.6]} 39... Ra2 {[%clk 0:01:14.9]} 40.
Nxf7 {[%clk 0:00:04.8]} 40... Rxf2+ {[%clk 0:01:14]} 41. Kg1 {[%clk 0:00:05.3]}
41... Nxe3 {[%clk 0:01:08.6]} 42. Nh6+ {[%clk 0:00:04.8]} 42... Kh8 {[%clk
0:01:08.1]} 43. Nf7+ {[%clk 0:00:04.3]} 43... Kg7 {[%clk 0:01:06.8]} 44. Ng5+
{[%clk 0:00:03.1]} 44... Kh6 {[%clk 0:01:06.4]} 45. Nxe4 {[%clk 0:00:03.6]}
45... Rb2 {[%clk 0:01:06.2]} 46. Nd2 {[%clk 0:00:02.7]} 46... Rxd2 {[%clk
0:01:05.8]} 47. Rc1 {[%clk 0:00:02.6]} 47... Rg2+ {[%clk 0:01:04.3]} 48. Kh1
{[%clk 0:00:03]} 48... Rb2 {[%clk 0:01:05.2]} 49. Nc4 {[%clk 0:00:03.2]} 49...
Nxc4 {[%clk 0:01:02.1]} 50. Rxc4 {[%clk 0:00:03.3]} 50... Rd2 {[%clk 0:01:03]}
51. Rb4 {[%clk 0:00:03.2]} 51... Kg5 {[%clk 0:01:02.9]} 52. Ra4 {[%clk
0:00:03.8]} 52... Kf5 {[%clk 0:01:03]} 53. Rb4 {[%clk 0:00:04.1]} 53... Ke4
{[%clk 0:01:02.3]} 54. Ra4 {[%clk 0:00:04.5]} 54... Kf3 {[%clk 0:01:02.4]} 55.
Ra3+ {[%clk 0:00:04.5]} 55... Kf2 {[%clk 0:01:02.9]} 56. Ra1 {[%clk 0:00:04.7]}
56... Rxd4 {[%clk 0:01:03.1]} 57. Rc1 {[%clk 0:00:04.9]} 57... e5 {[%clk
0:01:02.3]} 58. Rb1 {[%clk 0:00:05.3]} 58... e4 {[%clk 0:01:02.6]} 59. Rb2+
{[%clk 0:00:05.5]} 59... Kf3 {[%clk 0:01:01.3]} 60. Rb1 {[%clk 0:00:05.2]} 60...
e3 {[%clk 0:01:01.6]} 61. Kg1 {[%clk 0:00:05.9]} 61... e2 {[%clk 0:01:01.8]} 62.
Re1 {[%clk 0:00:05.9]} 62... Rd1 {[%clk 0:01:01.7]} 0-1

[Event "Late-Titled-Tuesday-Blitz-March-26-2024"]
[Site "Chess.com"]
[Date "2024.03.26"]
[Round "8"]
[White "IsuruAlahakoon"]
[Black "lluiss"]
[Result "0-1"]
[WhiteElo "2356"]
[BlackElo "2235"]
[TimeControl "180+1"]
[EndTime "15:28:28 PDT"]
[Termination "lluiss won on time"]

1. Nf3 {[%clk 0:03:00.9]} 1... d5 {[%clk 0:02:58.1]} 2. e3 {[%clk 0:03:01.2]}
2... c6 {[%clk 0:02:57.7]} 3. c4 {[%clk 0:03:01.3]} 3... e6 {[%clk 0:02:57.7]}
4. d4 {[%clk 0:02:59.4]} 4... f5 {[%clk 0:02:57.6]} 5. Nc3 {[%clk 0:02:58.4]}
5... Nf6 {[%clk 0:02:57.7]} 6. Bd3 {[%clk 0:02:58.2]} 6... Bd6 {[%clk 0:02:57]}
7. O-O {[%clk 0:02:58.2]} 7... O-O {[%clk 0:02:56.9]} 8. b3 {[%clk 0:02:57.3]}
8... Bd7 {[%clk 0:02:56.6]} 9. Bb2 {[%clk 0:02:55.9]} 9... Be8 {[%clk
0:02:56.4]} 10. cxd5 {[%clk 0:02:49.5]} 10... cxd5 {[%clk 0:02:53.3]} 11. Nb5
{[%clk 0:02:48.2]} 11... Bxb5 {[%clk 0:02:43.6]} 12. Bxb5 {[%clk 0:02:47.6]}
12... Nbd7 {[%clk 0:02:37.1]} 13. Rc1 {[%clk 0:02:44.4]} 13... a6 {[%clk
0:02:34.9]} 14. Bd3 {[%clk 0:02:43.3]} 14... Qe7 {[%clk 0:02:34]} 15. Ne5 {[%clk
0:02:40.9]} 15... Rfc8 {[%clk 0:02:28.4]} 16. Qe2 {[%clk 0:02:26.5]} 16... Ne4
{[%clk 0:02:26.9]} 17. Bxe4 {[%clk 0:02:18.6]} 17... fxe4 {[%clk 0:02:22.7]} 18.
f3 {[%clk 0:02:02.7]} 18... exf3 {[%clk 0:02:10.3]} 19. Rxc8+ {[%clk 0:01:49.7]}
19... Rxc8 {[%clk 0:02:09.3]} 20. Qxf3 {[%clk 0:01:44.7]} 20... Rc2 {[%clk
0:01:28.4]} 21. Nd3 {[%clk 0:01:31.4]} 21... Nf6 {[%clk 0:01:26.3]} 22. Qd1
{[%clk 0:01:17]} 22... Rc8 {[%clk 0:01:14.1]} 23. Qf3 {[%clk 0:01:03.4]} 23...
Ne4 {[%clk 0:01:10.5]} 24. Rc1 {[%clk 0:01:02.5]} 24... Rxc1+ {[%clk 0:01:06.9]}
25. Bxc1 {[%clk 0:00:54.2]} 25... Qc7 {[%clk 0:00:47.7]} 26. Qg4 {[%clk
0:00:52.6]} 26... Qf7 {[%clk 0:00:37.9]} 27. Qf3 {[%clk 0:00:50.5]} 27... Nc3
{[%clk 0:00:31.8]} 28. Bd2 {[%clk 0:00:37.3]} 28... Qxf3 {[%clk 0:00:26.8]} 29.
gxf3 {[%clk 0:00:36.7]} 29... Nxa2 {[%clk 0:00:26.7]} 30. Kf1 {[%clk 0:00:36.1]}
30... b6 {[%clk 0:00:25.8]} 31. Ke2 {[%clk 0:00:34.9]} 31... a5 {[%clk 0:00:26]}
32. Kd1 {[%clk 0:00:33]} 32... Kf7 {[%clk 0:00:24.1]} 33. Kc2 {[%clk 0:00:31.6]}
33... Nb4+ {[%clk 0:00:24.1]} 34. Bxb4 {[%clk 0:00:23.7]} 34... Bxb4 {[%clk
0:00:20.6]} 35. Ne5+ {[%clk 0:00:17.7]} 35... Ke7 {[%clk 0:00:17.3]} 36. e4
{[%clk 0:00:14.3]} 36... Bd6 {[%clk 0:00:15.4]} 37. exd5 {[%clk 0:00:07.9]}
37... Bxe5 {[%clk 0:00:14.3]} 38. dxe5 {[%clk 0:00:06.7]} 38... exd5 {[%clk
0:00:14.6]} 39. Kd3 {[%clk 0:00:07.3]} 39... Ke6 {[%clk 0:00:13.4]} 40. Kd4
{[%clk 0:00:07.4]} 40... b5 {[%clk 0:00:13.4]} 41. f4 {[%clk 0:00:06.2]} 41...
g6 {[%clk 0:00:13.5]} 42. Kc5 {[%clk 0:00:05.1]} 42... a4 {[%clk 0:00:09.6]} 43.
bxa4 {[%clk 0:00:03.4]} 43... bxa4 {[%clk 0:00:09.3]} 44. Kb4 {[%clk 0:00:04.3]}
44... g5 {[%clk 0:00:07.6]} 45. fxg5 {[%clk 0:00:02.5]} 45... Kxe5 {[%clk
0:00:07.6]} 0-1

[Event "Late-Titled-Tuesday-Blitz-March-26-2024"]
[Site "Chess.com"]
[Date "2024.03.26"]
[Round "8"]
[White "Nemsko"]
[Black "sotochess"]
[Result "1-0"]
[WhiteElo "2436"]
[BlackElo "2567"]
[TimeControl "180+1"]
[EndTime "15:28:30 PDT"]
[Termination "Nemsko won on time"]

1. e4 {[%clk 0:03:00.9]} 1... c5 {[%clk 0:02:55.7]} 2. Nf3 {[%clk 0:02:59.3]}
2... d6 {[%clk 0:02:54.9]} 3. d4 {[%clk 0:02:59.5]} 3... cxd4 {[%clk 0:02:55.8]}
4. Nxd4 {[%clk 0:03:00.4]} 4... Nf6 {[%clk 0:02:56.2]} 5. Nc3 {[%clk 0:02:59.8]}
5... a6 {[%clk 0:02:55.2]} 6. Be3 {[%clk 0:02:59]} 6... Ng4 {[%clk 0:02:48.5]}
7. Bg5 {[%clk 0:02:52.6]} 7... h6 {[%clk 0:02:48.1]} 8. Bh4 {[%clk 0:02:51.3]}
8... g5 {[%clk 0:02:45.1]} 9. Bg3 {[%clk 0:02:50.7]} 9... Bg7 {[%clk 0:02:38.6]}
10. h3 {[%clk 0:02:50.8]} 10... Ne5 {[%clk 0:02:35.4]} 11. f3 {[%clk 0:02:49.2]}
11... Nbc6 {[%clk 0:02:33.2]} 12. Bf2 {[%clk 0:02:48.7]} 12... Bd7 {[%clk
0:02:23.6]} 13. Qd2 {[%clk 0:02:21.3]} 13... Rc8 {[%clk 0:02:13.9]} 14. O-O-O
{[%clk 0:02:12.2]} 14... Na5 {[%clk 0:01:57.6]} 15. Kb1 {[%clk 0:02:01.4]} 15...
Nac4 {[%clk 0:01:54.5]} 16. Bxc4 {[%clk 0:02:01.1]} 16... Nxc4 {[%clk
0:01:52.7]} 17. Qd3 {[%clk 0:01:40.3]} 17... b5 {[%clk 0:01:14.2]} 18. Nd5
{[%clk 0:01:21.7]} 18... e6 {[%clk 0:01:01.1]} 19. Ne3 {[%clk 0:01:15.3]} 19...
Ne5 {[%clk 0:00:53.5]} 20. Qd2 {[%clk 0:01:09.6]} 20... a5 {[%clk 0:00:52.8]}
21. g3 {[%clk 0:00:38]} 21... Ng6 {[%clk 0:00:21.8]} 22. Ne2 {[%clk 0:00:14.6]}
22... Rc6 {[%clk 0:00:15.1]} 23. Nd4 {[%clk 0:00:14.1]} 23... Rc8 {[%clk
0:00:14]} 24. Ne2 {[%clk 0:00:14.2]} 24... Rc6 {[%clk 0:00:13.9]} 25. Nd4 {[%clk
0:00:14.8]} 25... Ra6 {[%clk 0:00:14.2]} 26. Qe2 {[%clk 0:00:11.1]} 26... Qb8
{[%clk 0:00:13.4]} 27. f4 {[%clk 0:00:06.7]} 27... gxf4 {[%clk 0:00:12.6]} 28.
gxf4 {[%clk 0:00:07.6]} 28... Nxf4 {[%clk 0:00:12.7]} 29. Qg4 {[%clk 0:00:07.3]}
29... Ng6 {[%clk 0:00:12.7]} 30. Qg2 {[%clk 0:00:04.7]} 30... h5 {[%clk
0:00:11.7]} 31. Bg3 {[%clk 0:00:04.9]} 31... h4 {[%clk 0:00:10.7]} 32. Bh2
{[%clk 0:00:05.4]} 32... a4 {[%clk 0:00:08.3]} 33. c3 {[%clk 0:00:02.8]} 33...
b4 {[%clk 0:00:04.5]} 34. cxb4 {[%clk 0:00:02.9]} 34... Qxb4 {[%clk 0:00:04.2]}
35. Qd2 {[%clk 0:00:03.8]} 35... Qc5 {[%clk 0:00:01.8]} 36. Qc3 {[%clk
0:00:03.6]} 36... Qxc3 {[%clk 0:00:01.3]} 37. bxc3 {[%clk 0:00:04.5]} 37... Ke7
{[%clk 0:00:01.8]} 38. Kc2 {[%clk 0:00:03.7]} 38... Rc8 {[%clk 0:00:01.9]} 39.
Kd2 {[%clk 0:00:03.1]} 39... Be5 {[%clk 0:00:02.2]} 40. Bxe5 {[%clk 0:00:02.6]}
40... Nxe5 {[%clk 0:00:02.5]} 41. Rhg1 {[%clk 0:00:03.1]} 41... Rb6 {[%clk
0:00:02.1]} 42. Rb1 {[%clk 0:00:03.2]} 42... Rcb8 {[%clk 0:00:01.2]} 43. Rxb6
{[%clk 0:00:03.4]} 43... Rxb6 {[%clk 0:00:02.1]} 44. Rc1 {[%clk 0:00:04.1]} 1-0

[Event "Late-Titled-Tuesday-Blitz-March-26-2024"]
[Site "Chess.com"]
[Date "2024.03.26"]
[Round "8"]
[White "subham777"]
[Black "djano"]
[Result "0-1"]
[WhiteElo "2545"]
[BlackElo "2681"]
[TimeControl "180+1"]
[EndTime "15:28:31 PDT"]
[Termination "djano won on time"]

1. e4 {[%clk 0:03:00.9]} 1... c5 {[%clk 0:02:59.7]} 2. Nf3 {[%clk 0:02:58.2]}
2... Nc6 {[%clk 0:02:59.8]} 3. Bb5 {[%clk 0:02:57.4]} 3... g5 {[%clk 0:03:00]}
4. Nxg5 {[%clk 0:02:42.2]} 4... Nf6 {[%clk 0:02:59.8]} 5. d3 {[%clk 0:02:34]}
5... Nd4 {[%clk 0:02:45.7]} 6. Bc4 {[%clk 0:02:27.2]} 6... d5 {[%clk 0:02:43.1]}
7. exd5 {[%clk 0:02:24.7]} 7... h6 {[%clk 0:02:38]} 8. Ne4 {[%clk 0:02:17.8]}
8... Nxd5 {[%clk 0:02:31.1]} 9. c3 {[%clk 0:02:13.6]} 9... Ne6 {[%clk
0:02:25.6]} 10. Qf3 {[%clk 0:02:08.5]} 10... Nb6 {[%clk 0:02:15.8]} 11. Bb3
{[%clk 0:01:49.1]} 11... Qc7 {[%clk 0:02:06.8]} 12. Be3 {[%clk 0:01:43.6]} 12...
Bd7 {[%clk 0:02:04.3]} 13. Bxe6 {[%clk 0:01:31.6]} 13... Bxe6 {[%clk 0:02:04]}
14. Nxc5 {[%clk 0:01:32.2]} 14... Bd5 {[%clk 0:01:57.6]} 15. Ne4 {[%clk
0:01:19.3]} 15... O-O-O {[%clk 0:01:48.4]} 16. Qg3 {[%clk 0:01:02.2]} 16... Qc6
{[%clk 0:01:44.4]} 17. O-O {[%clk 0:00:49.7]} 17... f5 {[%clk 0:01:40.2]} 18.
Ned2 {[%clk 0:00:48.1]} 18... Rg8 {[%clk 0:01:33.8]} 19. Bd4 {[%clk 0:00:21.9]}
19... Rxg3 {[%clk 0:01:29.1]} 20. fxg3 {[%clk 0:00:22.8]} 20... Bxg2 {[%clk
0:01:23.5]} 21. Rxf5 {[%clk 0:00:21.2]} 21... Bh3 {[%clk 0:01:17.1]} 22. Rc5
{[%clk 0:00:20]} 22... Qxc5 {[%clk 0:00:59.9]} 23. Bxc5 {[%clk 0:00:20.9]} 23...
Rxd3 {[%clk 0:01:00.1]} 24. Bd4 {[%clk 0:00:11.7]} 24... e5 {[%clk 0:00:58.5]}
25. Bxb6 {[%clk 0:00:09.2]} 25... axb6 {[%clk 0:00:59.4]} 26. Kf2 {[%clk
0:00:09]} 26... Bc5+ {[%clk 0:00:56.8]} 27. Ke2 {[%clk 0:00:08.4]} 27... Re3+
{[%clk 0:00:57]} 28. Kd1 {[%clk 0:00:08.4]} 28... Bg4+ {[%clk 0:00:56.2]} 29.
Kc2 {[%clk 0:00:08.6]} 29... Bf5+ {[%clk 0:00:55.5]} 30. Kd1 {[%clk 0:00:07.3]}
30... Bg4+ {[%clk 0:00:55.9]} 31. Kc2 {[%clk 0:00:07.4]} 31... Re1 {[%clk
0:00:56.6]} 32. b4 {[%clk 0:00:06.8]} 32... Be3 {[%clk 0:00:54.3]} 33. Kb2
{[%clk 0:00:04.6]} 33... Bf5 {[%clk 0:00:51.3]} 34. Nb3 {[%clk 0:00:03.8]} 34...
Re2+ {[%clk 0:00:44.8]} 35. Ka3 {[%clk 0:00:03.9]} 35... Rxh2 {[%clk 0:00:39.1]}
36. c4 {[%clk 0:00:04.4]} 36... Rh1 {[%clk 0:00:29.4]} 37. Kb2 {[%clk
0:00:04.3]} 37... Bf2 {[%clk 0:00:22.6]} 38. Nc3 {[%clk 0:00:04]} 38... Rxa1
{[%clk 0:00:22.6]} 39. Nxa1 {[%clk 0:00:04.7]} 39... Bxg3 {[%clk 0:00:22.8]} 40.
Nd5 {[%clk 0:00:05.3]} 40... Kd8 {[%clk 0:00:15.6]} 41. Nxb6 {[%clk 0:00:05.2]}
41... h5 {[%clk 0:00:14.8]} 42. Nc2 {[%clk 0:00:03.6]} 42... h4 {[%clk
0:00:15.2]} 43. Nd5 {[%clk 0:00:03.8]} 43... h3 {[%clk 0:00:14.4]} 44. Nde3
{[%clk 0:00:04.7]} 44... h2 {[%clk 0:00:13.6]} 45. Nxf5 {[%clk 0:00:04.9]} 45...
Bf4 {[%clk 0:00:11.5]} 46. Nd6 {[%clk 0:00:03.8]} 46... h1=Q {[%clk 0:00:11.3]}
47. c5 {[%clk 0:00:04.4]} 47... Qd5 {[%clk 0:00:09.9]} 48. Na3 {[%clk
0:00:03.2]} 48... Be3 {[%clk 0:00:08.1]} 49. Nac4 {[%clk 0:00:03.2]} 49... Bd4+
{[%clk 0:00:08.2]} 50. Kb3 {[%clk 0:00:03.7]} 50... e4 {[%clk 0:00:08.1]} 0-1

[Event "Late-Titled-Tuesday-Blitz-March-26-2024"]
[Site "Chess.com"]
[Date "2024.03.26"]
[Round "8"]
[White "financieru"]
[Black "Alex_Banzea"]
[Result "0-1"]
[WhiteElo "2409"]
[BlackElo "2531"]
[TimeControl "180+1"]
[EndTime "15:28:31 PDT"]
[Termination "Alex_Banzea won by resignation"]

1. d4 {[%clk 0:02:55.3]} 1... Nf6 {[%clk 0:02:57.9]} 2. c4 {[%clk 0:02:55.8]}
2... g6 {[%clk 0:02:58.4]} 3. Nc3 {[%clk 0:02:56.3]} 3... Bg7 {[%clk 0:02:59]}
4. e4 {[%clk 0:02:57]} 4... d6 {[%clk 0:02:59.9]} 5. f3 {[%clk 0:02:57.6]} 5...
O-O {[%clk 0:03:00.6]} 6. Be3 {[%clk 0:02:58.5]} 6... a6 {[%clk 0:03:01.2]} 7.
Bd3 {[%clk 0:02:58.3]} 7... Nfd7 {[%clk 0:03:00.1]} 8. Nge2 {[%clk 0:02:58.3]}
8... c5 {[%clk 0:03:00.8]} 9. d5 {[%clk 0:02:58]} 9... Ne5 {[%clk 0:03:01]} 10.
O-O {[%clk 0:02:58.3]} 10... Nbd7 {[%clk 0:03:00]} 11. b3 {[%clk 0:02:54]} 11...
b5 {[%clk 0:02:49.3]} 12. cxb5 {[%clk 0:02:42.9]} 12... Nxd3 {[%clk 0:02:49.2]}
13. Qxd3 {[%clk 0:02:43.8]} 13... axb5 {[%clk 0:02:50.1]} 14. Rac1 {[%clk
0:02:35.1]} 14... b4 {[%clk 0:02:21.4]} 15. Na4 {[%clk 0:02:34.3]} 15... Ba6
{[%clk 0:02:21.9]} 16. Qd2 {[%clk 0:02:33.1]} 16... Bb5 {[%clk 0:02:21.1]} 17.
h3 {[%clk 0:02:14.2]} 17... Bxa4 {[%clk 0:02:09]} 18. bxa4 {[%clk 0:02:15.1]}
18... Rxa4 {[%clk 0:02:09.4]} 19. f4 {[%clk 0:02:14.3]} 19... Qa5 {[%clk
0:02:09.1]} 20. Rc2 {[%clk 0:02:13.2]} 20... Ra8 {[%clk 0:02:06.5]} 21. Nc1
{[%clk 0:02:12.2]} 21... Ra3 {[%clk 0:01:35.2]} 22. Kh1 {[%clk 0:02:09.4]} 22...
Qa4 {[%clk 0:01:34.8]} 23. Rf2 {[%clk 0:01:57]} 23... Rxe3 {[%clk 0:01:23.8]}
24. Qxe3 {[%clk 0:01:57.9]} 24... Bd4 {[%clk 0:01:24.3]} 25. Qe2 {[%clk
0:01:57.1]} 25... Bxf2 {[%clk 0:01:23.7]} 26. Qxf2 {[%clk 0:01:58]} 26... Nf6
{[%clk 0:01:13.2]} 27. Qe2 {[%clk 0:01:53.2]} 27... Nh5 {[%clk 0:01:13.4]} 28.
Qf2 {[%clk 0:01:22.1]} 28... Ng3+ {[%clk 0:01:10.3]} 29. Kh2 {[%clk 0:01:20.4]}
29... Nxe4 {[%clk 0:01:10.4]} 30. Qe2 {[%clk 0:01:21]} 30... Nc3 {[%clk
0:01:08.8]} 31. Qd3 {[%clk 0:01:17.6]} 31... Qb5 {[%clk 0:01:04.3]} 32. Rxc3
{[%clk 0:01:13.3]} 32... Qxd3 {[%clk 0:00:56.9]} 33. Rxd3 {[%clk 0:01:14.2]}
33... Kf8 {[%clk 0:00:44.9]} 34. Kg1 {[%clk 0:01:10.4]} 34... Ke8 {[%clk
0:00:45.5]} 35. Kf2 {[%clk 0:01:11]} 35... Kd7 {[%clk 0:00:46.3]} 36. Ke2 {[%clk
0:01:11.1]} 36... e6 {[%clk 0:00:47]} 37. Kd2 {[%clk 0:00:59.2]} 37... exd5
{[%clk 0:00:47]} 38. Rxd5 {[%clk 0:01:00.1]} 38... Kc6 {[%clk 0:00:47.6]} 39.
Rd3 {[%clk 0:00:59.9]} 39... d5 {[%clk 0:00:48.2]} 40. Kc2 {[%clk 0:00:57.5]}
40... d4 {[%clk 0:00:43.4]} 41. Kb2 {[%clk 0:00:39.6]} 41... Kd5 {[%clk
0:00:43.5]} 42. Nb3 {[%clk 0:00:36.7]} 42... Re8 {[%clk 0:00:44.1]} 43. Rd2
{[%clk 0:00:32.6]} 43... Re4 {[%clk 0:00:41.6]} 44. Rf2 {[%clk 0:00:26.2]} 44...
c4 {[%clk 0:00:42]} 45. Nc1 {[%clk 0:00:24]} 45... d3 {[%clk 0:00:39.5]} 46. f5
{[%clk 0:00:22.1]} 46... c3+ {[%clk 0:00:34.5]} 47. Kb1 {[%clk 0:00:22.5]} 47...
d2 {[%clk 0:00:34.3]} 48. Kc2 {[%clk 0:00:23]} 48... Re1 {[%clk 0:00:30.3]} 49.
Rxd2+ {[%clk 0:00:17.7]} 49... cxd2 {[%clk 0:00:30]} 50. Kxd2 {[%clk 0:00:18.6]}
50... Rg1 {[%clk 0:00:23]} 51. fxg6 {[%clk 0:00:18]} 51... Rxg2+ {[%clk
0:00:22.9]} 52. Ne2 {[%clk 0:00:16.9]} 52... hxg6 {[%clk 0:00:22.7]} 53. Ke3
{[%clk 0:00:17.6]} 53... Rxe2+ {[%clk 0:00:20.7]} 54. Kxe2 {[%clk 0:00:17.9]}
54... Ke4 {[%clk 0:00:21.5]} 55. Kf2 {[%clk 0:00:18.3]} 55... Kf4 {[%clk
0:00:21.8]} 56. Kg2 {[%clk 0:00:18.8]} 56... Ke3 {[%clk 0:00:21.3]} 57. Kg3
{[%clk 0:00:19.3]} 57... f5 {[%clk 0:00:22]} 58. h4 {[%clk 0:00:20]} 58... f4+
{[%clk 0:00:22.2]} 59. Kg2 {[%clk 0:00:20.8]} 59... Ke2 {[%clk 0:00:22.8]} 0-1